lending/lending_fUSD_20251111
["ID","MTS","AMOUNT","RATE_DAILY","PERIOD"]
[393623179,1762863031872,-2169.65689444,0.00034431,2]
[393623180,1762863031882,-1000.0,0.00034525,2]
[393623181,1762863031895,-2353.74899457,0.00034583,2]
[393623182,1762863031905,-166.66,0.00034674,30]
[393623183,1762863031914,-2537.84109471,0.00034735,2]
[393623184,1762863031924,-2721.93319484,0.00034888,2]
[393623185,1762863031934,-2906.02529497,0.0003504,2]
[393623186,1762863031945,-3090.11739511,0.00035192,2]
[393623187,1762863031955,-3274.20949524,0.00035344,2]
[393623188,1762863031965,-500.0,0.00035434,30]
[393623189,1762863031975,-3458.30159538,0.00035496,2]
[393623190,1762863031986,-1000.0,0.000355,7]
[393623191,1762863031995,-3642.39369551,0.00035648,2]
[393623192,1762863032004,-999.0,0.00035755,3]
[393623193,1762863032014,-1000.0,0.00035755,2]
[393623194,1762863032024,-224.51,0.00035755,2]
[393623195,1762863032034,-200.0,0.00035755,2]
[393623196,1762863032043,-250.0,0.00035755,2]
[393623197,1762863032052,-7413.63,0.00035796,2]
[393623198,1762863032061,-3826.48579564,0.00035801,2]
[393623199,1762863032071,-166.66,0.00035891,30]
[393623200,1762863032080,-4010.57789578,0.00035953,2]
[393623201,1762863032089,-4194.66999591,0.00036105,2]
[393623202,1762863032099,-279.9808,0.00036167,2]
[393623203,1762863032108,-736.4187,0.00036167,2]
[393623204,1762863032117,-1000.0,0.00036167,120]
[393623205,1762863032127,-2500.0,0.00036167,2]
[393623207,1762863032136,-161.95733267,0.00036173,15]
[393623208,1762863032145,-232.0,0.00036202,2]
[393623211,1762863032155,-168.0,0.00036229,2]
[393623213,1762863032164,-4378.76209605,0.00036257,2]
[393623215,1762863032173,-1210.06,0.00036257,2]
[393623217,1762863032183,-1210.06,0.00036257,2]
[393623219,1762863032192,-1210.06,0.00036257,2]
[393623221,1762863032201,-163.41,0.00036257,2]
[393623223,1762863032211,-1370.95688355,0.00036266,2]
[393623225,1762863032221,-500.0,0.00036266,7]
[393623226,1762863032231,-500.0,0.00036266,2]
[393623227,1762863032241,-454.55,0.00036266,14]
[393623228,1762863032251,-522.47521665,0.00036266,120]
[393623229,1762863032260,-500.0,0.00036266,30]
[393623230,1762863032270,-500.0,0.00036266,2]
[393623231,1762863032279,-500.0,0.00036266,120]
[393623232,1762863032288,-524.08523061,0.00036266,120]
[393623233,1762863032298,-300.7101503,0.00036266,15]
[393623234,1762863032307,-500.0,0.00036266,15]
[393623235,1762863032316,-500.0,0.00036266,15]
[393623236,1762863032326,-331.2280488,0.00036266,15]
[393623237,1762863032335,-231.39615919,0.00036266,15]
[393623238,1762863032344,-500.0,0.00036266,15]
[393623239,1762863032354,-575.72793222,0.00036266,15]
[393623240,1762863032363,-368.32449129,0.00036266,15]
[393623241,1762863032373,-77344.46784131,0.00036267,2]
[393623242,1762863032385,-18914.33537816,0.00036267,2]
[393623243,1762863032396,-39466.27282622,0.00036267,2]
[393623250,1762863037658,-554.89727071,0.00036266,120]
[393623251,1762863037670,-2.72761672,0.00036266,120]
[393623252,1762863037680,-302.64238328,0.00036267,2]
[393623253,1762863037714,-283972.28157103,0.00036267,2]
[393623254,1762863037724,-9004.58561138,0.00036267,2]
[393623255,1762863037734,-500.0,0.00036273,5]
[393623256,1762863037743,-500.0,0.00036273,5]
[393623257,1762863037752,-500.0,0.00036273,2]
[393623258,1762863037762,-503.42717423,0.00036273,5]
[393623259,1762863037771,-500.0,0.00036273,5]
[393623260,1762863037780,-274.55088361,0.00036273,5]
[393623261,1762863037790,-501.87005511,0.00036273,5]
[393623262,1762863037799,-500.0,0.00036273,5]
[393623263,1762863037808,-500.0,0.00036273,5]
[393623264,1762863037817,-500.0,0.00036273,5]
[393623265,1762863037830,-300.0,0.00036439,2]
[393623266,1762863037839,-454.55,0.0003654,14]
[393623267,1762863037848,-500.0,0.0003657,2]
[393623268,1762863037858,-1000.0,0.000366,7]
[393623269,1762863037867,-2154.0,0.00036612,3]
[393623270,1762863037878,-161.95733264,0.00036769,15]
[393623271,1762863037888,-1210.06,0.00036811,2]
[393623272,1762863037900,-454.55,0.00036814,14]
[393623273,1762863037910,-500.0,0.00036821,5]
[393623274,1762863037920,-500.0,0.00036821,2]
[393623275,1762863037935,-500.0,0.00036821,5]
[393623276,1762863037949,-500.0,0.00036821,5]
[393623277,1762863037959,-300.0,0.00036837,2]
[393623278,1762863037969,-2143.0,0.00037031,2]
[393623279,1762863037979,-906.0,0.00037031,2]
[393623280,1762863037988,-454.55,0.00037088,14]
[393623281,1762863037998,-155.28,0.00037104,60]
[393623282,1762863038007,-166.66,0.00037107,30]
[393623283,1762863038016,-155.28,0.00037204,60]
[393623284,1762863038026,-168.0,0.0003728,2]
[393623285,1762863038036,-155.28,0.00037304,60]
[393623286,1762863038045,-454.59,0.00037362,14]
[393623287,1762863038055,-161.95733264,0.00037366,15]
[393623288,1762863038065,-150.0,0.00037366,2]
[393623289,1762863038075,-150.0,0.00037366,2]
[393623290,1762863038085,-155.28,0.00037404,60]
[393623291,1762863038094,-150.0,0.00037503,2]
[393623292,1762863038104,-155.28,0.00037504,60]
[393623293,1762863038113,-150.0,0.00037543,7]
[393623294,1762863038123,-150.0,0.00037543,7]
[393623295,1762863038132,-500.0,0.00037543,7]
[393623296,1762863038141,-500.0,0.00037543,2]
[393623297,1762863038151,-500.0,0.00037543,7]
[393623298,1762863038161,-150.0,0.00037543,7]
[393623299,1762863038171,-500.0,0.00037543,2]
[393623300,1762863038180,-500.0,0.00037543,7]
[393623301,1762863038190,-500.0,0.00037575,5]
[393623302,1762863038200,-155.28,0.00037604,60]
[393623303,1762863038209,-300.0,0.0003762,2]
[393623304,1762863038219,-300.0,0.00037621,2]
[393623305,1762863038229,-155.48275379,0.0003764,2]
[393623306,1762863038239,-300.0,0.00037649,2]
[393623307,1762863038248,-150.0,0.0003768,7]
[393623308,1762863038257,-150.0,0.0003768,7]
[393623309,1762863038267,-500.0,0.0003768,7]
[393623310,1762863038277,-500.0,0.0003768,2]
[393623311,1762863038286,-500.0,0.0003768,7]
[393623312,1762863038296,-152.81423976,0.0003768,7]
[393623313,1762863038306,-500.0,0.0003768,2]
[393623314,1762863038316,-500.0,0.0003768,7]
[393623315,1762863038326,-155.28,0.00037704,60]
[393623316,1762863038335,-150.0,0.00037754,2]
[393623317,1762863038345,-150.0,0.00037754,120]
[393623318,1762863038354,-500.0,0.00037754,2]
[393623319,1762863038364,-150.0,0.00037754,2]
[393623320,1762863038374,-150.0,0.00037754,2]
[393623321,1762863038383,-500.0,0.00037754,2]
[393623322,1762863038394,-150.0,0.00037754,2]
[393623323,1762863038403,-500.0,0.00037754,2]
[393623324,1762863038589,-150.0,0.00037754,2]
[393623325,1762863038599,-500.0,0.00037754,2]
[393623326,1762863038609,-500.0,0.00037754,2]
[393623327,1762863038619,-1000.0,0.000378,7]
[393623328,1762863038628,-150.0,0.00037804,50]
[393623329,1762863038637,-150.0,0.00037804,60]
[393623330,1762863038647,-500.0,0.00037804,60]
[393623331,1762863038656,-500.0,0.00037804,60]
[393623332,1762863038666,-150.0,0.00037804,60]
[393623333,1762863038676,-500.0,0.00037804,60]
[393623334,1762863038685,-500.0,0.00037804,60]
[393623335,1762863038694,-150.0,0.00037804,60]
[393623336,1762863038704,-500.0,0.00037804,60]
[393623337,1762863038714,-500.0,0.00037804,60]
[393623338,1762863038723,-500.0,0.00037804,60]
[393623339,1762863038733,-150.0,0.00037804,60]
[393623340,1762863038741,-500.0,0.00037804,60]
[393623341,1762863038750,-500.0,0.00037804,23]
[393623342,1762863038758,-155.3,0.00037804,60]
[393623343,1762863038767,-150.0,0.00037817,7]
[393623344,1762863038776,-150.0,0.00037817,7]
[393623345,1762863038785,-500.0,0.00037817,7]
[393623346,1762863038794,-500.0,0.00037817,2]
[393623347,1762863038804,-500.0,0.00037817,7]
[393623348,1762863038813,-500.0,0.00037817,2]
[393623349,1762863038823,-500.0,0.00037817,7]
[393623350,1762863038832,-300.0,0.00037854,2]
[393623351,1762863038842,-300.0,0.00037865,2]
[393623352,1762863038851,-150.0,0.00037891,2]
[393623353,1762863038861,-500.0,0.00037891,2]
[393623354,1762863038871,-361.71538546,0.00037891,2]
[393623355,1762863038882,-500.0,0.00037891,2]
[393623356,1762863038895,-500.0,0.00037891,2]
[393623357,1762863038904,-1000.0,0.00037893,7]
[393623358,1762863038914,-150.0,0.00037941,50]
[393623359,1762863038923,-150.0,0.00037941,60]
[393623360,1762863038933,-500.0,0.00037941,60]
[393623361,1762863038943,-500.0,0.00037941,60]
[393623362,1762863038953,-150.0,0.00037941,60]
[393623363,1762863038962,-500.0,0.00037941,60]
[393623364,1762863038972,-500.0,0.00037941,60]
[393623365,1762863038982,-150.0,0.00037941,60]
[393623366,1762863038991,-500.0,0.00037941,60]
[393623367,1762863039001,-500.0,0.00037941,60]
[393623368,1762863039011,-604.99215178,0.00037941,60]
[393623369,1762863039020,-150.0,0.00037941,60]
[393623370,1762863039029,-500.0,0.00037941,60]
[393623371,1762863039039,-500.0,0.00037941,23]
[393623372,1762863039048,-152.22350438,0.00037954,7]
[393623373,1762863039058,-150.0,0.00037954,7]
[393623374,1762863039068,-433.36871423,0.00037954,7]
[393623375,1762863039078,-500.0,0.00037954,2]
[393623376,1762863039087,-500.0,0.00037954,7]
[393623377,1762863039097,-155.24816507,0.00037954,2]
[393623378,1762863039106,-500.0,0.00037954,7]
[393623379,1762863039116,-161.95733264,0.00037962,15]
[393623380,1762863039126,-300.0,0.00037968,2]
[393623381,1762863039135,-300.0,0.00037983,2]
[393623382,1762863039145,-3473.0,0.00038,5]
[393623383,1762863039155,-2000.0,0.00038,2]
[393623384,1762863039165,-150.0,0.00038028,2]
[393623385,1762863039174,-500.0,0.00038028,2]
[393623386,1762863039184,-500.0,0.00038028,2]
[393623387,1762863039194,-500.0,0.00038028,2]
[393623388,1762863039204,-201.42723711,0.00038078,50]
[393623389,1762863039214,-150.0,0.00038078,60]
[393623390,1762863039225,-454.21627899,0.00038078,60]
[393623391,1762863039236,-307.91528284,0.00038078,60]
[393623392,1762863039246,-163.86032762,0.00038078,60]
[393623393,1762863039257,-500.0,0.00038078,60]
[393623394,1762863039267,-452.65981266,0.00038078,60]
[393623395,1762863039279,-150.0,0.00038078,60]
[393623396,1762863039290,-500.0,0.00038078,60]
[393623397,1762863039300,-500.0,0.00038078,60]
[393623398,1762863039310,-159.37165432,0.00038078,60]
[393623399,1762863039320,-500.0,0.00038078,60]
[393623400,1762863039330,-500.0,0.00038078,23]
[393623401,1762863039339,-154.35833183,0.00038091,7]
[393623402,1762863039349,-500.0,0.00038091,2]
[393623403,1762863039359,-500.0,0.00038091,7]
[393623404,1762863039368,-500.0,0.00038091,7]
[393623405,1762863039378,-300.0,0.000381,2]
[393623406,1762863039389,-358.0,0.00038108,7]
[393623407,1762863039399,-300.0,0.00038137,2]
[393623408,1762863039409,-300.0,0.00038145,2]
[393623409,1762863039419,-300.0,0.00038147,2]
[393623410,1762863039429,-157.55671658,0.00038165,2]
[393623411,1762863039438,-500.0,0.00038165,2]
[393623412,1762863039448,-500.0,0.00038165,2]
[393623413,1762863039459,-500.0,0.00038165,2]
[393623414,1762863039468,-298.45860482,0.00038215,60]
[393623415,1762863039479,-500.0,0.00038215,60]
[393623416,1762863039488,-153.70882138,0.00038215,60]
[393623417,1762863039498,-500.0,0.00038215,60]
[393623418,1762863039507,-500.0,0.00038215,60]
[393623419,1762863039517,-500.0,0.00038215,60]
[393623420,1762863039526,-500.0,0.00038215,23]
[393623421,1762863039535,-500.0,0.00038219,7]
[393623422,1762863039545,-500.0,0.00038219,7]
[393623423,1762863039555,-500.0,0.00038228,2]
[393623424,1762863039564,-500.0,0.00038228,7]
[393623425,1762863039576,-500.0,0.00038228,7]
[393623426,1762863039585,-300.0,0.00038232,2]
[393623427,1762863039595,-168.0,0.0003828,7]
[393623428,1762863039604,-500.0,0.00038302,2]
[393623429,1762863039614,-500.0,0.00038302,2]
[393623430,1762863039624,-500.0,0.00038302,2]
[393623431,1762863039635,-300.0,0.00038306,2]
[393623432,1762863039645,-166.66,0.00038324,30]
[393623433,1762863039655,-150.0,0.00038339,7]
[393623434,1762863039665,-1210.06,0.00038342,2]
[393623435,1762863039674,-7932.20317444,0.00038346,4]
[393623436,1762863039686,-500.0,0.00038352,60]
[393623437,1762863039695,-500.0,0.00038352,60]
[393623438,1762863039706,-500.0,0.00038352,60]
[393623439,1762863039715,-404.07529901,0.00038352,23]
[393623440,1762863039727,-151.0,0.00038353,14]
[393623441,1762863039737,-500.0,0.00038356,2]
[393623442,1762863039747,-500.0,0.00038356,2]
[393623443,1762863039757,-500.0,0.00038356,2]
[393623444,1762863039767,-500.0,0.00038356,2]
[393623445,1762863039777,-500.0,0.00038356,2]
[393623446,1762863039788,-538.13671702,0.00038356,2]
[393623447,1762863039798,-638.46,0.00038356,2]
[393623448,1762863039808,-638.46,0.00038356,2]
[393623449,1762863039818,-638.46,0.00038356,2]
[393623450,1762863039830,-638.46,0.00038356,2]
[393623451,1762863039839,-638.46,0.00038356,2]
[393623452,1762863039850,-638.46,0.00038356,2]
[393623453,1762863039860,-638.46,0.00038356,2]
[393623454,1762863039870,-638.46,0.00038356,2]
[393623455,1762863039880,-638.46,0.00038356,2]
[393623456,1762863039893,-638.46,0.00038356,2]
[393623457,1762863039903,-638.46,0.00038356,2]
[393623458,1762863039913,-638.46,0.00038356,2]
[393623459,1762863039923,-638.46,0.00038356,2]
[393623460,1762863039934,-638.46,0.00038356,2]
[393623461,1762863039943,-638.46,0.00038356,2]
[393623462,1762863039953,-638.46,0.00038356,2]
[393623463,1762863039965,-638.46,0.00038356,2]
[393623464,1762863039975,-638.46,0.00038356,2]
[393623465,1762863039984,-638.46,0.00038356,2]
[393623466,1762863039994,-638.46,0.00038356,2]
[393623467,1762863040004,-638.46,0.00038356,2]
[393623468,1762863040013,-638.46,0.00038356,2]
[393623469,1762863040023,-638.46,0.00038356,2]
[393623470,1762863040032,-638.65,0.00038356,2]
[393623471,1762863040042,-300.0,0.00038356,2]
[393623472,1762863040051,-300.0,0.00038356,2]
[393623473,1762863040060,-300.0,0.00038356,2]
[393623474,1762863040070,-300.0,0.00038356,2]
[393623475,1762863040080,-300.0,0.00038356,2]
[393623476,1762863040089,-1000.0,0.00038356,2]
[393623477,1762863040099,-500.0,0.00038356,2]
[393623478,1762863040108,-150.0,0.00038356,5]
[393623479,1762863040117,-500.0,0.00038365,2]
[393623480,1762863040127,-500.0,0.00038365,7]
[393623481,1762863040136,-500.0,0.00038365,7]
[393623482,1762863040146,-150.0,0.00038371,7]
[393623483,1762863040155,-500.21512962,0.00038373,5]
[393623484,1762863040165,-502.33349575,0.00038373,5]
[393623485,1762863040174,-500.0,0.00038373,5]
[393623486,1762863040184,-504.91660051,0.00038373,5]
[393623487,1762863040193,-200.0,0.00038373,5]
[393623488,1762863040204,-500.0,0.00038373,5]
[393623489,1762863040213,-505.14005012,0.00038373,5]
[393623490,1762863040223,-503.66064638,0.00038373,5]
[393623491,1762863040232,-300.0,0.00038396,2]
[393623492,1762863040242,-300.0,0.00038407,2]
[393623493,1762863040251,-217.96580628,0.00038415,2]
[393623494,1762863040261,-528.38259742,0.00038439,2]
[393623495,1762863040270,-500.0,0.00038439,2]
[393623496,1762863040280,-500.0,0.00038439,2]
[393623497,1762863040289,-300.0,0.0003844,2]
[393623498,1762863040300,-1000.0,0.00038483,7]
[393623499,1762863040309,-300.0,0.00038486,2]
[393623500,1762863040318,-500.0,0.00038489,60]
[393623501,1762863040328,-500.0,0.00038489,60]
[393623502,1762863040337,-363.66049175,0.00038489,60]
[393623503,1762863040347,-852.76,0.00038492,5]
[393623504,1762863040356,-500.0,0.00038502,2]
[393623506,1762863040367,-500.0,0.00038502,7]
[393623508,1762863040376,-500.0,0.00038502,7]
[393623510,1762863040385,-7932.20317444,0.00038521,4]
[393623512,1762863040394,-1250.53,0.00038523,2]
[393623514,1762863040403,-15864.4063489,0.00038537,4]
[393623516,1762863040414,-232.51861703,0.00038547,30]
[393623518,1762863040423,-500.0,0.00038547,120]
[393623519,1762863040432,-33287.216,0.00038547,2]
[393623520,1762863040441,-1000.0,0.00038547,2]
[393623521,1762863040452,-189.98,0.00038552,2]
[393623522,1762863040463,-161.95733264,0.00038558,15]
[393623523,1762863040473,-1000.0,0.00038561,7]
[393623524,1762863040483,-7932.20317444,0.00038566,4]
[393623525,1762863040493,-1653.22241756,0.00038567,2]
[393623526,1762863040503,-500.0,0.00038573,5]
[393623527,1762863040513,-503.22174975,0.00038573,5]
[393623528,1762863040523,-501.42722306,0.00038573,5]
[393623529,1762863040533,-363.25928453,0.00038573,5]
[393623530,1762863040542,-505.49083869,0.00038573,5]
[393623531,1762863040551,-501.39454671,0.00038573,5]
[393623532,1762863040561,-386.48130404,0.00038573,5]
[393623533,1762863040571,-500.0,0.00038576,2]
[393623534,1762863040580,-500.0,0.00038576,2]
[393623535,1762863040589,-150.0,0.00038576,7]
[393623536,1762863040599,-150.0,0.00038585,7]
[393623537,1762863040608,-167.38,0.0003859,2]
[393623538,1762863040618,-1250.53,0.00038592,2]
[393623539,1762863040627,-500.0,0.00038626,60]
[393623540,1762863040638,-509.51951312,0.00038626,60]
[393623541,1762863040647,-300.0,0.00038629,2]
[393623542,1762863040657,-500.0,0.00038639,2]
[393623543,1762863040667,-500.0,0.00038639,7]
[393623544,1762863040677,-500.0,0.00038639,7]
[393623545,1762863040688,-500.0,0.00038647,120]
[393623546,1762863040698,-500.0,0.00038647,120]
[393623547,1762863040709,-1000.0,0.00038647,2]
[393623548,1762863040719,-1000.0,0.00038647,2]
[393623549,1762863040729,-1000.0,0.00038647,2]
[393623550,1762863040738,-1000.0,0.00038647,2]
[393623551,1762863040749,-1000.0,0.00038647,2]
[393623552,1762863040759,-162.76175568,0.00038658,30]
[393623553,1762863040769,-300.0,0.00038675,2]
[393623554,1762863040779,-300.0,0.00038695,2]
[393623555,1762863040789,-217.96580628,0.00038695,2]
[393623556,1762863040799,-371.73,0.000387,120]
[393623557,1762863040809,-1653.22241756,0.00038712,2]
[393623558,1762863040819,-500.0,0.00038713,2]
[393623559,1762863040829,-500.0,0.00038713,2]
[393623560,1762863040839,-300.0,0.00038714,2]
[393623561,1762863040849,-300.0,0.00038727,7]
[393623562,1762863040859,-7932.20317444,0.00038752,4]
[393623563,1762863040868,-300.0,0.00038761,2]
[393623564,1762863040878,-500.0,0.00038763,60]
[393623565,1762863040890,-300.0,0.00038769,2]
[393623566,1762863040900,-500.0,0.00038776,2]
[393623567,1762863040911,-500.0,0.00038776,7]
[393623568,1762863040922,-500.0,0.00038776,7]
[393623569,1762863040932,-300.0,0.00038787,2]
[393623570,1762863040942,-168.54112068,0.000388,120]
[393623571,1762863040952,-500.0,0.0003885,2]
[393623572,1762863040964,-500.0,0.0003885,2]
[393623573,1762863040974,-422.34158653,0.00038851,11]
[393623574,1762863040985,-422.34158646,0.00038851,11]
[393623575,1762863040996,-422.34158646,0.00038851,11]
[393623576,1762863041006,-422.34158646,0.00038851,11]
[393623577,1762863041017,-422.34158646,0.00038851,11]
[393623578,1762863041027,-422.34158646,0.00038851,11]
[393623579,1762863041038,-422.34158646,0.00038851,11]
[393623580,1762863041048,-422.34158646,0.00038851,11]
[393623581,1762863041059,-422.34158646,0.00038851,11]
[393623582,1762863041069,-422.34158646,0.00038851,11]
[393623583,1762863041079,-422.34158646,0.00038851,11]
[393623584,1762863041089,-7932.20317444,0.00038853,4]
[393623585,1762863041100,-300.0,0.00038854,2]
[393623586,1762863041111,-234.91258694,0.0003886,30]
[393623587,1762863041121,-500.0,0.00038863,7]
[393623588,1762863041131,-500.0,0.00038863,7]
[393623589,1762863041141,-500.0,0.00038863,7]
[393623590,1762863041150,-500.0,0.00038863,7]
[393623591,1762863041160,-500.0,0.00038863,7]
[393623592,1762863041169,-500.0,0.00038863,7]
[393623593,1762863041179,-500.0,0.00038863,7]
[393623594,1762863041188,-500.0,0.00038863,7]
[393623595,1762863041197,-500.0,0.00038863,7]
[393623596,1762863041207,-500.0,0.00038863,7]
[393623597,1762863041216,-500.0,0.00038863,7]
[393623598,1762863041226,-500.0,0.00038863,7]
[393623599,1762863041236,-500.0,0.00038863,7]
[393623600,1762863041247,-500.0,0.00038863,7]
[393623601,1762863041257,-219.57,0.00038863,7]
[393623602,1762863041267,-500.0,0.00038863,7]
[393623603,1762863041277,-512.69,0.00038863,7]
[393623604,1762863041287,-500.0,0.00038863,7]
[393623605,1762863041297,-300.0,0.00038884,2]
[393623606,1762863041307,-500.0,0.000389,60]
[393623607,1762863041317,-1300.0,0.000389,14]
[393623608,1762863041327,-204.43952516,0.00038904,5]
[393623609,1762863041338,-500.0,0.00038913,2]
[393623610,1762863041349,-500.0,0.00038913,7]
[393623611,1762863041359,-500.0,0.00038913,7]
[393623612,1762863041371,-235.33606138,0.00038921,5]
[393623613,1762863041381,-502.48155544,0.00038921,5]
[393623614,1762863041391,-300.0,0.00038935,2]
[393623615,1762863041402,-200.0,0.00038944,6]
[393623616,1762863041414,-200.0,0.00038944,6]
[393623617,1762863041425,-7932.20317444,0.00038946,4]
[393623618,1762863041435,-422.34158646,0.00038984,11]
[393623619,1762863041446,-500.0,0.00038987,2]
[393623620,1762863041458,-500.0,0.00038987,2]
[393623621,1762863041468,-150.0,0.00038994,7]
[393623622,1762863041478,-2149.45206844,0.00038999,2]
[393623623,1762863041488,-500.0,0.00038999,2]
[393623624,1762863041497,-2600.0,0.00039,14]
[393623625,1762863041507,-203.9235885,0.00039,120]
[393623626,1762863041517,-300.0,0.0003901,2]
[393623627,1762863041528,-169.21,0.00039014,2]
[393623628,1762863041538,-169.21,0.00039014,2]
[393623629,1762863041548,-169.21,0.00039014,2]
[393623630,1762863041560,-169.21,0.00039014,2]
[393623631,1762863041570,-169.21,0.00039014,2]
[393623632,1762863041580,-168.16,0.00039014,2]
[393623633,1762863041590,-338.42,0.00039014,2]
[393623634,1762863041600,-150.0,0.00039023,7]
[393623635,1762863041610,-189.98,0.00039026,2]
[393623636,1762863041621,-500.0,0.00039037,60]
[393623637,1762863041633,-212.00196463,0.0003905,2]
[393623638,1762863041643,-500.0,0.0003905,7]
[393623639,1762863041654,-500.0,0.0003905,7]
[393623640,1762863041664,-1653.22241756,0.00039053,2]
[393623641,1762863041674,-300.0,0.00039058,5]
[393623642,1762863041684,-217.96580628,0.00039062,2]
[393623643,1762863041694,-300.0,0.00039082,2]
[393623644,1762863041705,-7932.20317444,0.0003909,4]
[393623645,1762863041715,-3900.0,0.000391,14]
[393623646,1762863041725,-505.87243499,0.00039105,120]
[393623647,1762863041735,-163.41,0.00039114,2]
[393623648,1762863041745,-501.16416456,0.00039121,5]
[393623649,1762863041755,-300.0,0.00039121,2]
[393623650,1762863041765,-500.0,0.00039124,2]
[393623651,1762863041775,-193.65862463,0.00039124,2]
[393623652,1762863041785,-500.0,0.00039124,2]
[393623653,1762863041795,-300.0,0.00039141,2]
[393623654,1762863041805,-300.0,0.00039146,2]
[393623655,1762863041815,-161.95733264,0.00039155,15]
[393623656,1762863041826,-500.0,0.00039174,60]
[393623657,1762863041835,-150.0,0.00039186,7]
[393623658,1762863041846,-500.0,0.00039187,7]
[393623659,1762863041855,-500.0,0.00039187,7]
[393623660,1762863041865,-873.0,0.00039198,7]
[393623661,1762863041875,-500.0,0.00039199,120]
[393623662,1762863041886,-1004.5997,0.00039199,2]
[393623663,1762863041898,-5200.0,0.000392,14]
[393623664,1762863041907,-217.96580629,0.00039212,2]
[393623665,1762863041918,-300.0,0.00039233,2]
[393623666,1762863041929,-300.0,0.00039236,2]
[393623667,1762863041939,-422.34158646,0.0003924,11]
[393623668,1762863041949,-23796.6095233,0.0003924,4]
[393623669,1762863041960,-44894.5778389,0.0003925,2]
[393623670,1762863041970,-482.46147239,0.00039261,2]
[393623671,1762863041980,-7932.20317444,0.0003929,4]
[393623672,1762863041990,-6500.0,0.000393,14]
[393623673,1762863042000,-375.90278448,0.00039302,2]
[393623674,1762863042010,-500.0,0.00039311,60]
[393623675,1762863042021,-500.0,0.00039324,7]
[393623676,1762863042030,-500.0,0.00039324,7]
[393623677,1762863042040,-300.0,0.00039333,2]
[393623678,1762863042050,-300.0,0.00039336,2]
[393623679,1762863042060,-7932.20317444,0.00039362,4]
[393623680,1762863042193,-1000.0,0.00039372,7]
[393623681,1762863042218,-375.90278445,0.00039377,2]
[393623682,1762863042227,-300.0,0.00039378,95]
[393623683,1762863042238,-150.0,0.00039384,7]
[393623684,1762863042248,-1300.0,0.000394,14]
[393623685,1762863042257,-130615.40192372,0.000394,120]
[393623686,1762863042267,-208.85288909,0.00039402,7]
[393623687,1762863042277,-150.0,0.00039408,7]
[393623688,1762863042287,-1653.22241759,0.00039437,2]
[393623689,1762863042297,-150.0,0.00039444,7]
[393623690,1762863042307,-473.98864809,0.00039448,60]
[393623691,1762863042318,-375.90278445,0.00039452,2]
[393623692,1762863042329,-607.0,0.00039461,7]
[393623693,1762863042339,-500.0,0.00039461,7]
[393623694,1762863042349,-150.0,0.00039467,7]
[393623695,1762863042358,-150.0,0.00039469,7]
[393623696,1762863042368,-422.34158646,0.00039495,11]
[393623697,1762863042378,-2500.0,0.00039496,14]
[393623698,1762863042388,-176.11544,0.000395,120]
[393623699,1762863042398,-1300.0,0.000395,14]
[393623700,1762863042407,-300.0,0.00039502,2]
[393623701,1762863042417,-2500.0,0.00039504,14]